bitfinex-derivatives/quotes_SOLF0:USTF0_20260222
["timestamp","ask_amount","ask_price","bid_price","bid_amount"]
[1771742470403,8.97421047,85.204,85.177,26.14028418]
[1771742470604,8.97421047,85.203,85.177,26.14028418]
[1771742470799,24.94929165,85.217,85.177,26.14028418]
[1771742471005,24.94929165,85.215,85.177,26.14028418]
[1771742471204,8.97418192,85.216,85.177,26.14028418]
[1771742471205,24.94929165,85.213,85.177,26.14028418]
[1771742471405,8.97418192,85.212,85.177,26.14028418]
[1771742471699,8.97418192,85.211,85.177,26.14028418]
[1771742471901,8.97418192,85.21,85.177,26.14028418]
[1771742472101,8.97418192,85.209,85.177,26.14028418]
[1771742472302,8.97418192,85.208,85.177,26.14028418]
[1771742472511,8.97418192,85.207,85.177,26.14028418]
[1771742472710,8.97418192,85.206,85.177,26.14028418]
[1771742472910,8.97418192,85.205,85.177,26.14028418]
[1771742473209,8.97418192,85.204,85.177,26.14028418]
[1771742473411,8.97418192,85.203,85.177,26.14028418]
[1771742473610,24.94929165,85.213,85.177,26.14028418]
[1771742473810,8.97415636,85.212,85.177,26.14028418]
[1771742474012,8.97415636,85.211,85.177,26.14028418]
[1771742474214,8.97415636,85.21,85.177,26.14028418]
[1771742474413,8.97415636,85.209,85.177,26.14028418]
[1771742474614,8.97415636,85.208,85.177,26.14028418]
[1771742474809,8.97415636,85.207,85.177,26.14028418]
[1771742475108,8.97415636,85.206,85.177,26.14028418]
[1771742475407,8.97415636,85.205,85.177,26.14028418]
[1771742475608,11.90827947,85.204,85.177,26.14028418]
[1771742475814,11.90827947,85.203,85.177,26.14028418]
[1771742476114,2.93412311,85.202,85.177,26.14028418]
[1771742476311,2.93412311,85.201,85.177,26.14028418]
[1771742476506,24.94929165,85.213,85.177,26.14028418]
[1771742476712,11.90834362,85.212,85.177,26.14028418]
[1771742476911,11.90834362,85.211,85.177,26.14028418]
[1771742477115,11.90834362,85.21,85.177,26.14028418]
[1771742477314,11.90834362,85.209,85.177,26.14028418]
[1771742477614,11.90834362,85.208,85.177,26.14028418]
[1771742477814,11.90834362,85.207,85.177,26.14028418]
[1771742478114,11.90834362,85.206,85.177,26.14028418]
[1771742478316,11.90834362,85.205,85.177,26.14028418]
[1771742478514,11.90834362,85.204,85.177,26.14028418]
[1771742478714,11.90834362,85.203,85.177,26.14028418]
[1771742478914,2.93412311,85.202,85.177,26.14028418]
[1771742479114,2.93412311,85.201,85.177,26.14028418]
[1771742479316,24.94929165,85.213,85.177,26.14028418]
[1771742479516,11.90851145,85.212,85.177,26.14028418]
[1771742479814,11.90851145,85.211,85.177,26.14028418]
[1771742480016,11.90851145,85.21,85.177,26.14028418]
[1771742480216,11.90851145,85.209,85.177,26.14028418]
[1771742480513,25.83952261,85.207,85.165,25.45738073]
[1771742480708,25.83952261,85.205,85.165,25.45738073]
[1771742481017,25.83952261,85.203,85.165,25.45738073]
[1771742481317,25.83952261,85.201,85.165,25.45738073]
[1771742481515,28.77364572,85.2,85.165,25.45738073]
[1771742481718,28.77364572,85.199,85.165,25.45738073]
[1771742481918,25.83952261,85.199,85.165,25.45738073]
[1771742487618,10.5644,85.217,85.165,25.45738073]
[1771742487923,25.83952261,85.215,85.171,25.45738073]
[1771742488124,25.83952261,85.213,85.171,25.45738073]
[1771742488324,37.74920134,85.212,85.171,25.45738073]
[1771742488625,11.90967873,85.211,85.171,25.45738073]
[1771742488923,25.83952261,85.212,85.171,25.45738073]
[1771742488924,11.90967873,85.21,85.171,25.45738073]
[1771742489125,11.90967873,85.209,85.171,25.45738073]
[1771742489424,11.90967873,85.208,85.171,25.45738073]
[1771742489724,11.90967873,85.207,85.171,25.45738073]
[1771742489920,11.90967873,85.206,85.171,25.45738073]
[1771742490121,11.90967873,85.205,85.171,25.45738073]
[1771742490425,11.90967873,85.204,85.171,25.45738073]
[1771742490624,11.90967873,85.203,85.171,25.45738073]
[1771742490923,11.90967873,85.202,85.171,25.45738073]
[1771742491117,2.93420203,85.201,85.171,25.45738073]
[1771742491317,2.93420203,85.2,85.171,25.45738073]
[1771742491520,25.83952261,85.212,85.171,25.45738073]
[1771742491718,25.83952261,85.21,85.171,25.45738073]
[1771742491917,25.83952261,85.208,85.171,25.45738073]
[1771742492118,11.91033802,85.207,85.171,25.45738073]
[1771742492426,11.91033802,85.206,85.171,25.45738073]
[1771742492624,11.91033802,85.205,85.171,25.45738073]
[1771742492927,11.91033802,85.204,85.171,25.45738073]
[1771742493126,11.91033802,85.203,85.171,25.45738073]
[1771742493325,11.91033802,85.202,85.171,25.45738073]
[1771742493527,2.93420126,85.201,85.171,25.45738073]
[1771742493728,2.93420126,85.2,85.171,25.45738073]
[1771742494027,25.83952261,85.208,85.171,25.45738073]
[1771742494221,11.91072679,85.207,85.171,25.45738073]
[1771742494428,11.91072679,85.206,85.171,25.45738073]
[1771742494626,11.91072679,85.205,85.171,25.45738073]
[1771742494827,11.91072679,85.204,85.171,25.45738073]
[1771742495122,11.91072679,85.203,85.171,25.45738073]
[1771742495326,11.91072679,85.202,85.171,25.45738073]
[1771742495527,11.91072679,85.201,85.171,25.45738073]
[1771742495723,2.93420174,85.2,85.171,25.45738073]
[1771742495921,2.93420174,85.199,85.171,25.45738073]
[1771742496126,25.83952261,85.208,85.171,25.45738073]
[1771742496324,37.75045601,85.207,85.171,25.45738073]
[1771742496524,37.75045601,85.206,85.171,25.45738073]
[1771742496726,11.9109334,85.205,85.171,25.45738073]
[1771742497027,11.9109334,85.204,85.171,25.45738073]
[1771742497228,11.9109334,85.203,85.171,25.45738073]
[1771742497427,11.9109334,85.202,85.171,25.45738073]
[1771742497625,11.9109334,85.201,85.171,25.45738073]
[1771742497831,2.93420182,85.2,85.171,25.45738073]
[1771742498030,25.83952261,85.205,85.171,25.45738073]
[1771742498031,2.93420182,85.199,85.171,25.45738073]
[1771742498231,25.83952261,85.205,85.171,25.45738073]
[1771742498432,11.90549653,85.204,85.171,25.45738073]
[1771742498631,11.90549653,85.203,85.171,25.45738073]
[1771742498827,11.90549653,85.202,85.171,25.45738073]
[1771742499130,11.90549653,85.201,85.171,25.45738073]
[1771742499333,2.93420182,85.2,85.171,25.45738073]
[1771742499534,2.93420182,85.199,85.171,25.45738073]
[1771742499734,25.83952261,85.205,85.171,25.45738073]
[1771742500033,27.45741411,85.203,85.171,25.45738073]
[1771742500233,11.90547751,85.202,85.171,25.45738073]
[1771742500427,11.90547751,85.201,85.171,25.45738073]
[1771742500630,27.45741411,85.203,85.171,25.45738073]
[1771742500631,2.93420182,85.2,85.171,25.45738073]
[1771742500930,2.93420182,85.199,85.171,25.45738073]
[1771742501132,27.45741411,85.203,85.171,25.45738073]
[1771742501326,11.90545733,85.202,85.171,25.45738073]
[1771742501534,11.90545733,85.201,85.171,25.45738073]
[1771742501730,2.93420166,85.2,85.171,25.45738073]
[1771742501930,2.93420166,85.199,85.171,25.45738073]
[1771742502134,27.45741411,85.203,85.171,25.45738073]
[1771742502334,11.90545621,85.202,85.171,25.45738073]
[1771742502537,11.90545621,85.201,85.171,25.45738073]
[1771742502738,2.93420166,85.2,85.171,25.45738073]
[1771742502939,2.93420166,85.199,85.171,25.45738073]
[1771742503139,27.45741411,85.203,85.171,25.45738073]
[1771742503438,11.90545838,85.202,85.171,25.45738073]
[1771742503637,11.90545838,85.201,85.171,25.45738073]
[1771742503839,2.93420298,85.2,85.171,25.45738073]
[1771742504037,2.93420298,85.199,85.171,25.45738073]
[1771742504239,27.45741411,85.203,85.171,25.45738073]
[1771742504538,11.90546195,85.202,85.171,25.45738073]
[1771742504742,11.90546195,85.201,85.171,25.45738073]
[1771742504940,2.93420298,85.2,85.171,25.45738073]
[1771742505137,2.93420298,85.199,85.171,25.45738073]
[1771742505337,27.45741411,85.203,85.171,25.45738073]
[1771742505540,11.90546284,85.202,85.171,25.45738073]
[1771742505742,11.90546284,85.201,85.171,25.45738073]
[1771742505938,27.45741411,85.196,85.15,50.0]
[1771742506137,170.43418453,85.233,85.15,50.0]
[1771742506138,27.45741411,85.189,85.15,50.0]
[1771742506442,2.46873191,85.19,85.15,50.0]
[1771742506443,27.45741411,85.179,85.15,27.1684411]
[1771742506638,27.45741411,85.177,85.15,27.1684411]
[1771742506839,8.97138809,85.176,85.15,27.1684411]
[1771742507039,27.45741411,85.185,85.15,27.1684411]
[1771742507246,27.45741411,85.183,85.15,27.1684411]
[1771742507445,27.45741411,85.181,85.15,27.1684411]
[1771742507647,27.45741411,85.179,85.15,27.1684411]
[1771742510550,27.45741411,85.189,85.151,27.1491025]
[1771742510751,11.88456396,85.188,85.151,27.1491025]
[1771742510940,11.88456396,85.187,85.151,27.1491025]
[1771742511144,11.88456396,85.186,85.151,27.1491025]
[1771742511347,11.88456396,85.185,85.151,27.1491025]
[1771742511551,27.45741411,85.189,85.151,27.1491025]
[1771742511749,27.45741411,85.187,85.151,27.1491025]
[1771742511949,11.88205564,85.186,85.151,27.1491025]
[1771742512150,11.88205564,85.185,85.151,27.1491025]
[1771742512452,27.45741411,85.187,85.151,27.1491025]
[1771742512644,11.87987957,85.186,85.151,27.1491025]
[1771742512843,8.9447224,85.185,85.151,27.1491025]
[1771742513044,27.45741411,85.187,85.151,27.1491025]
[1771742527364,27.45741411,85.186,85.151,27.1491025]
[1771742529263,26.01674236,85.184,85.151,27.1491025]
[1771742536563,10.5688,85.182,85.151,27.1491025]
[1771742537568,25.86540854,85.21,85.161,26.32587096]
[1771742537871,25.86540854,85.208,85.161,26.32587096]
[1771742538172,37.73929386,85.207,85.161,26.32587096]
[1771742538374,37.73929386,85.206,85.161,26.32587096]
[1771742538669,10.5662,85.203,85.161,26.32587096]
[1771742541369,2.93454213,85.202,85.161,26.32587096]
[1771742541675,10.5662,85.203,85.161,26.32587096]
[1771742541974,2.93454213,85.202,85.161,26.32587096]
[1771742542175,10.5662,85.203,85.161,26.32587096]
[1771742542473,2.93454213,85.202,85.161,26.32587096]
[1771742542669,10.5662,85.203,85.161,26.32587096]
[1771742542875,2.93454196,85.202,85.161,26.32587096]
[1771742543175,10.5662,85.203,85.161,26.32587096]
[1771742543371,11.87917968,85.202,85.161,26.32587096]
[1771742543572,10.5662,85.203,85.161,26.32587096]
[1771742543773,11.87922473,85.202,85.161,26.32587096]
[1771742543974,10.5662,85.203,85.161,26.32587096]
[1771742544274,11.87922473,85.202,85.161,26.32587096]
[1771742544475,2.93454196,85.201,85.161,26.32587096]
[1771742544676,2.93454196,85.2,85.171,26.32587096]
[1771742544974,10.5662,85.203,85.171,26.32587096]
[1771742545175,11.88025963,85.202,85.171,26.32587096]
[1771742545475,11.88025963,85.201,85.171,26.32587096]
[1771742545672,11.88025963,85.2,85.171,26.32587096]
[1771742545876,10.5662,85.203,85.171,26.32587096]
[1771742546176,11.88134798,85.202,85.171,26.32587096]
[1771742546379,11.88134798,85.201,85.171,26.32587096]
[1771742546578,11.88134798,85.2,85.171,26.32587096]
[1771742546774,2.93454179,85.199,85.171,26.32587096]
[1771742546974,10.5662,85.203,85.171,26.32587096]
[1771742547276,11.88249572,85.202,85.171,26.32587096]
[1771742547577,11.88249572,85.201,85.171,26.32587096]
[1771742547778,11.88249572,85.2,85.171,26.32587096]
[1771742548077,10.5662,85.203,85.171,26.32587096]
[1771742548078,11.88518273,85.199,85.171,26.32587096]
[1771742548277,2.93454134,85.198,85.171,26.32587096]
[1771742548472,10.5662,85.203,85.171,26.32587096]
[1771742548678,11.88497691,85.202,85.171,26.32587096]
[1771742548976,11.88497691,85.201,85.171,26.32587096]
[1771742549173,2.93454134,85.2,85.171,26.32587096]
[1771742549369,10.5662,85.203,85.171,26.32587096]
[1771742550279,2.93432157,85.202,85.171,26.32587096]
[1771742550474,10.5662,85.203,85.171,26.32587096]
[1771742550675,2.93432157,85.202,85.171,26.32587096]
[1771742550875,10.5662,85.203,85.171,26.32587096]
[1771742551076,2.93432157,85.202,85.171,26.32587096]
[1771742551271,10.5662,85.203,85.171,26.32587096]
[1771742551578,2.93432157,85.202,85.171,26.32587096]
[1771742551779,10.5662,85.203,85.171,26.32587096]
[1771742551980,2.93432157,85.202,85.171,26.32587096]
[1771742552280,10.5662,85.203,85.171,26.32587096]
[1771742554180,10.5662,85.203,85.17,2.47059597]
[1771742554181,25.86540854,85.199,85.162,26.32587096]
[1771742554380,25.86540854,85.197,85.162,26.32587096]
[1771742560387,10.5671,85.195,85.162,26.32587096]
[1771742568295,25.86540854,85.197,85.162,26.32587096]
[1771742573205,2.93454607,85.196,85.162,26.32587096]
[1771742573502,25.86540854,85.197,85.162,26.32587096]
[1771742573703,2.93454489,85.196,85.162,26.32587096]
[1771742573904,25.86540854,85.197,85.162,26.32587096]
[1771742574204,2.93454489,85.196,85.162,26.32587096]
[1771742574399,25.86540854,85.197,85.162,26.32587096]
[1771742574601,2.93454519,85.196,85.162,26.32587096]
[1771742574806,25.86540854,85.197,85.162,26.32587096]
[1771742576305,2.93454519,85.196,85.162,26.32587096]
[1771742576509,25.86540854,85.197,85.162,26.32587096]
[1771742576704,2.93454519,85.196,85.162,26.32587096]
[1771742576905,25.86540854,85.197,85.162,26.32587096]
[1771742577209,2.93454519,85.196,85.162,26.32587096]
[1771742577510,25.86540854,85.197,85.162,26.32587096]
[1771742577710,2.93454519,85.196,85.162,26.32587096]
[1771742577909,25.86540854,85.197,85.162,26.32587096]
[1771742578211,24.8803565,85.195,85.162,26.32587096]
[1771742579107,24.8803565,85.246,85.181,24.71069978]
[1771742579310,24.8803565,85.229,85.181,24.71069978]
[1771742579612,24.8803565,85.227,85.181,24.71069978]
[1771742579807,24.8803565,85.225,85.181,24.71069978]
[1771742580109,24.8803565,85.223,85.181,24.71069978]
[1771742580309,24.8803565,85.221,85.181,24.71069978]
[1771742580509,24.8803565,85.219,85.181,24.71069978]
[1771742580710,27.81352499,85.218,85.181,24.71069978]
[1771742580910,2.93316849,85.217,85.181,24.71069978]
[1771742581110,2.93316849,85.216,85.181,24.71069978]
[1771742581311,24.8803565,85.218,85.181,24.71069978]
[1771742581512,2.9339956,85.217,85.181,24.71069978]
[1771742581712,2.9339956,85.216,85.181,24.71069978]
[1771742581908,24.8803565,85.218,85.181,24.71069978]
[1771742582911,24.8803565,85.23,85.2,2.46955883]
[1771742584415,24.8803565,85.23,85.191,24.71069978]
[1771742585015,27.81386736,85.229,85.191,24.71069978]
[1771742585215,24.8803565,85.229,85.191,24.71069978]
[1771742599623,10.5631,85.228,85.191,24.71069978]
[1771742600929,35.78157596,85.228,85.191,24.71069978]
[1771742602531,10.5631,85.228,85.191,24.71069978]
[1771742603932,10.5638,85.222,85.191,24.71069978]
[1771742611232,25.21847596,85.227,85.191,24.71069978]
[1771742613634,25.21847596,85.227,85.18,2.46955883]
[1771742613635,25.21847596,85.219,85.156,24.49222188]
[1771742613938,25.21847596,85.219,85.162,24.49222188]
[1771742615935,25.21847596,85.219,85.17,2.46955883]
[1771742616237,25.21847596,85.219,85.171,24.49222188]
[1771742621744,23.78302457,85.217,85.171,24.49222188]
[1771742622346,23.78302457,85.217,85.173,23.00440668]
[1771742623346,2.93385527,85.216,85.173,23.00440668]
[1771742623541,2.93385527,85.215,85.173,23.00440668]
[1771742623843,23.78302457,85.217,85.173,23.00440668]
[1771742624041,2.93385527,85.216,85.173,23.00440668]
[1771742624236,2.46955883,85.18,85.152,21.80592409]
[1771742624445,26.2525834,85.2,85.153,23.00440668]
[1771742624644,2.93446746,85.199,85.153,23.00440668]
[1771742624842,26.2525834,85.2,85.153,23.00440668]
[1771742625747,26.2525834,85.2,85.154,23.00440668]
[1771742629450,23.78302457,85.2,85.154,23.00440668]
[1771742634849,23.78302457,85.2,85.161,23.00440668]
[1771742639254,2.46955883,85.21,85.171,23.00440668]
[1771742639255,23.78302457,85.21,85.171,23.00440668]
[1771742639451,23.78302457,85.225,85.181,23.00440668]
[1771742643959,23.78302457,85.223,85.181,23.00440668]
[1771742647261,10.5639,85.221,85.181,23.00440668]
[1771742647560,23.78302457,85.22,85.181,23.00440668]
[1771742653367,10.5641,85.219,85.181,23.00440668]
[1771742653566,35.11399478,85.219,85.181,23.00440668]
[1771742654267,24.54989478,85.218,85.181,23.00440668]
[1771742663073,24.54989478,85.216,85.181,23.00440668]
[1771742678181,25.00788164,85.215,85.181,23.00440668]
[1771742678487,22.07402468,85.215,85.181,23.00440668]
[1771742680293,2.93385696,85.214,85.181,23.00440668]
[1771742680491,22.07402468,85.215,85.181,23.00440668]
[1771742680790,2.93385696,85.214,85.181,23.00440668]
[1771742680990,22.07402468,85.215,85.181,23.00440668]
[1771742681191,2.93385696,85.214,85.181,23.00440668]
[1771742681491,2.93385696,85.213,85.181,23.00440668]
[1771742681691,22.07402468,85.215,85.181,23.00440668]
[1771742681892,2.93385688,85.214,85.181,23.00440668]
[1771742682094,2.93385688,85.213,85.181,23.00440668]
[1771742682292,2.93385688,85.212,85.181,23.00440668]
[1771742682492,22.07402468,85.215,85.181,23.00440668]
[1771742682696,2.93385688,85.214,85.181,23.00440668]
[1771742682999,2.93385688,85.213,85.181,23.00440668]
[1771742683197,22.07402468,85.215,85.181,23.00440668]
[1771742683198,2.93385688,85.212,85.181,23.00440668]
[1771742683392,2.93385688,85.211,85.181,23.00440668]
[1771742683591,22.07402468,85.215,85.181,23.00440668]
[1771742683792,2.93385688,85.214,85.181,23.00440668]
[1771742683992,2.93385688,85.213,85.181,23.00440668]
[1771742684192,11.7427669,85.212,85.181,23.00440668]
[1771742684395,2.93385688,85.211,85.181,23.00440668]
[1771742684595,2.93385688,85.21,85.181,23.00440668]
[1771742684795,2.93385688,85.209,85.181,23.00440668]
[1771742685097,2.93385688,85.208,85.181,23.00440668]
[1771742685296,2.93385688,85.207,85.181,23.00440668]
[1771742685497,22.07402468,85.215,85.181,23.00440668]
[1771742685697,11.74276778,85.214,85.181,23.00440668]
[1771742685896,11.74276778,85.213,85.181,23.00440668]
[1771742686095,11.74276778,85.212,85.181,23.00440668]
[1771742686295,2.93385688,85.211,85.181,23.00440668]
[1771742686500,2.93385688,85.21,85.181,23.00440668]
[1771742686701,2.93385688,85.209,85.181,23.00440668]
[1771742686899,2.93385688,85.208,85.181,23.00440668]
[1771742687199,2.93385688,85.207,85.181,23.00440668]
[1771742687399,22.07402468,85.215,85.181,23.00440668]
[1771742687600,11.74276968,85.214,85.181,23.00440668]
[1771742687797,11.74276968,85.213,85.181,23.00440668]
[1771742687999,11.74276968,85.212,85.181,23.00440668]
[1771742688199,2.93385688,85.211,85.181,23.00440668]
[1771742688401,2.93385688,85.21,85.181,23.00440668]
[1771742688597,2.93385688,85.209,85.181,23.00440668]
[1771742688794,2.93385688,85.208,85.181,23.00440668]
[1771742688994,2.93385688,85.207,85.181,23.00440668]
[1771742689198,22.07402468,85.215,85.181,23.00440668]
[1771742689494,11.74277034,85.214,85.181,23.00440668]
[1771742689693,11.74277034,85.213,85.181,23.00440668]
[1771742690001,11.74277034,85.212,85.181,23.00440668]
[1771742690202,2.93385688,85.211,85.181,23.00440668]
[1771742690401,2.93385688,85.21,85.181,23.00440668]
[1771742690701,2.93385688,85.209,85.181,23.00440668]
[1771742690900,2.93385688,85.208,85.181,23.00440668]
[1771742691098,2.93385688,85.207,85.181,23.00440668]
[1771742691300,22.07402468,85.215,85.181,23.00440668]
[1771742691498,11.74277043,85.214,85.181,23.00440668]
[1771742691701,11.74277043,85.213,85.181,23.00440668]
[1771742691996,11.74277043,85.212,85.181,23.00440668]
[1771742692196,2.93385688,85.211,85.181,23.00440668]
[1771742692401,2.93385688,85.21,85.181,23.00440668]
[1771742692604,2.93385688,85.209,85.181,23.00440668]
[1771742692805,2.93385688,85.208,85.181,23.00440668]
[1771742693007,2.93385688,85.207,85.181,23.00440668]
[1771742693207,22.07402468,85.215,85.181,23.00440668]
[1771742693408,11.74277424,85.214,85.181,23.00440668]
[1771742693610,11.74277424,85.213,85.181,23.00440668]
[1771742693805,11.74277424,85.212,85.181,23.00440668]
[1771742694002,2.93385688,85.211,85.181,23.00440668]
[1771742694208,2.93385688,85.21,85.181,23.00440668]
[1771742694408,22.07402468,85.208,85.157,23.02217794]
[1771742694610,22.07402468,85.206,85.171,23.02217794]
[1771742694911,2.93385688,85.205,85.171,23.02217794]
[1771742695113,2.93385688,85.204,85.171,23.02217794]
[1771742695310,2.93385688,85.203,85.171,23.02217794]
[1771742695510,22.07402468,85.206,85.171,23.02217794]
[1771742695708,2.93411721,85.205,85.171,23.02217794]
[1771742695910,2.93411721,85.204,85.171,23.02217794]
[1771742696209,2.93411721,85.203,85.171,23.02217794]
[1771742696409,22.07402468,85.206,85.171,23.02217794]
[1771742696609,2.93411782,85.205,85.171,23.02217794]
[1771742696814,2.93411782,85.204,85.171,23.02217794]
[1771742697012,2.93411782,85.203,85.171,23.02217794]
[1771742697213,22.07402468,85.206,85.171,23.02217794]
[1771742697414,2.93411782,85.205,85.171,23.02217794]
[1771742697712,2.93411782,85.204,85.171,23.02217794]
[1771742698012,22.07402468,85.206,85.171,23.02217794]
[1771742698013,2.93411782,85.203,85.171,23.02217794]
[1771742698214,22.07402468,85.206,85.171,23.02217794]
[1771742698512,2.93415556,85.205,85.171,23.02217794]
[1771742698714,2.93415556,85.204,85.171,23.02217794]
[1771742698909,22.07402468,85.206,85.171,23.02217794]
[1771742699115,2.93411782,85.205,85.171,23.02217794]
[1771742699414,2.93411782,85.204,85.171,23.02217794]
[1771742699611,22.07402468,85.206,85.171,23.02217794]
[1771742699813,2.93411826,85.205,85.171,23.02217794]
[1771742700013,2.93411826,85.204,85.171,23.02217794]
[1771742700212,22.07402468,85.206,85.171,23.02217794]
[1771742700213,2.93411826,85.203,85.171,23.02217794]
[1771742700515,22.07402468,85.206,85.171,23.02217794]
[1771742700712,25.00818196,85.205,85.171,23.02217794]
[1771742700913,72.91406819,85.35,85.156,23.02217794]
[1771742700914,22.07402468,85.195,85.156,23.02217794]
[1771742701214,22.07402468,85.193,85.156,23.02217794]
[1771742701516,2.93454011,85.192,85.156,23.02217794]
[1771742701716,22.07402468,85.193,85.156,23.02217794]
[1771742702017,2.93450763,85.192,85.156,23.02217794]
[1771742702211,22.07402468,85.193,85.156,23.02217794]
[1771742702713,2.46904501,85.2,85.15,29.63748611]
[1771742702714,22.07402468,85.209,85.171,23.02217794]
[1771742702911,2.9341641,85.208,85.171,23.02217794]
[1771742703216,22.07402468,85.209,85.171,23.02217794]
[1771742703417,10.563,85.229,85.181,23.02217794]
[1771742703418,22.07402468,85.229,85.181,23.02217794]
[1771742703618,22.07402468,85.227,85.181,23.02217794]
[1771742703816,22.07402468,85.225,85.181,23.02217794]
[1771742704112,22.07402468,85.223,85.181,23.02217794]
[1771742706119,22.07402468,85.219,85.181,23.02217794]
[1771742706916,22.07402468,85.219,85.181,33.59097794]
[1771742707223,22.07402468,85.219,85.182,23.02217794]
[1771742707722,22.07402468,85.229,85.184,23.02217794]
[1771742707914,2.93343944,85.228,85.184,23.02217794]
[1771742708222,25.65072982,85.227,85.184,23.02217794]
[1771742708415,25.65072982,85.226,85.184,23.02217794]
[1771742708613,22.71729038,85.226,85.184,23.02217794]
[1771742708821,22.71729038,85.226,85.187,22.12851571]
[1771742743640,23.55256079,85.238,85.191,22.32953163]
[1771742743841,2.93316737,85.237,85.191,22.32953163]
[1771742744140,23.55256079,85.238,85.21,2.46904501]
[1771742744141,2.93316737,85.236,85.21,2.46904501]
[1771742744341,23.55256079,85.238,85.21,2.46904501]
[1771742744542,2.9331633,85.237,85.21,2.46904501]
[1771742744843,2.9331633,85.236,85.21,2.46904501]
[1771742745034,23.55256079,85.238,85.21,2.46904501]
[1771742745238,2.93316308,85.237,85.21,2.46904501]
[1771742745439,2.93316308,85.236,85.21,2.46904501]
[1771742745637,23.55256079,85.238,85.21,2.46904501]
[1771742745838,2.93316308,85.237,85.21,2.46904501]
[1771742746041,2.93316308,85.236,85.21,2.46904501]
[1771742746241,2.93316308,85.235,85.21,2.46904501]
[1771742746435,23.55256079,85.238,85.21,2.46904501]
[1771742746636,2.93316308,85.237,85.21,2.46904501]
[1771742746834,2.93316308,85.236,85.21,2.46904501]
[1771742747042,2.93316308,85.235,85.21,2.46904501]
[1771742747234,2.93316308,85.234,85.21,2.46904501]
[1771742747542,2.93316308,85.233,85.21,2.46904501]
[1771742747743,23.55256079,85.238,85.21,2.46904501]
[1771742748039,11.74550052,85.237,85.21,2.46904501]
[1771742748343,11.74550052,85.236,85.21,2.46904501]
[1771742748642,23.55256079,85.238,85.21,2.46904501]
[1771742748843,2.93294259,85.237,85.21,2.46904501]
[1771742749037,23.55256079,85.247,85.22,2.46904501]
[1771742749246,2.93274717,85.246,85.22,2.46904501]
[1771742749447,2.93274717,85.245,85.22,2.46904501]
[1771742749635,23.55256079,85.247,85.22,2.46904501]
[1771742749838,2.93274335,85.246,85.22,2.46904501]
[1771742750142,23.55256079,85.247,85.22,2.46904501]
[1771742750336,2.93274357,85.246,85.22,2.46904501]
[1771742750539,23.55256079,85.247,85.22,2.46904501]
[1771742750736,2.93274357,85.246,85.22,2.46904501]
[1771742750942,23.55256079,85.247,85.22,2.46904501]
[1771742751641,23.55256079,85.247,85.22,24.79857664]
[1771742751642,2.93274379,85.246,85.22,24.79857664]
[1771742751944,23.55256079,85.258,85.23,2.46904501]
[1771742752245,2.93265307,85.257,85.23,2.46904501]
[1771742752444,2.93265307,85.256,85.23,2.46904501]
[1771742752745,23.55256079,85.258,85.23,2.46904501]
[1771742757645,23.55256079,85.258,85.22,22.32953163]
[1771742757845,23.55256079,85.258,85.22,24.79857664]
[1771742759849,23.55256079,85.258,85.22,22.32953163]
[1771742760040,23.55256079,85.258,85.22,24.79536256]
[1771742760449,23.55256079,85.258,85.208,10.5655]
[1771742760450,23.55256079,85.269,85.23,2.46583093]
[1771742760651,23.55256079,85.267,85.23,2.46583093]
[1771742763254,23.55256079,85.264,85.23,2.46583093]
[1771742764458,23.55256079,85.262,85.23,2.46583093]
[1771742768259,23.52597631,85.26,85.23,2.46583093]
[1771742776969,23.52597631,85.26,85.229,22.32953163]
[1771742777169,23.52597631,85.26,85.23,2.46583093]
[1771742780573,7.631e-05,85.26,85.24,2.46583093]
[1771742783575,21.68787448,85.27,85.241,10.5613]
[1771742783768,24.62030014,85.269,85.241,10.5613]
[1771742783975,24.62030014,85.268,85.241,10.5613]
[1771742784277,24.62030014,85.267,85.241,10.5613]
[1771742784476,24.62030014,85.266,85.241,10.5613]
[1771742784678,2.566e-05,85.265,85.241,10.5613]
[1771742784879,1.4e-07,85.265,85.241,10.5613]
[1771742787380,1.4e-07,85.265,85.231,21.99335102]
[1771742789184,8.80146384,85.264,85.231,21.99335102]
[1771742789382,1.4e-07,85.265,85.231,21.99335102]
[1771742793082,8.81241074,85.264,85.231,21.99335102]
[1771742793289,1.4e-07,85.265,85.231,21.99335102]
[1771742793586,8.81241074,85.264,85.231,21.99335102]
[1771742793786,1.4e-07,85.265,85.231,21.99335102]
[1771742793987,8.81241074,85.264,85.231,21.99335102]
[1771742794183,8.81371175,85.263,85.231,21.99335102]
[1771742794388,1.4e-07,85.265,85.231,21.99335102]
[1771742794691,8.81371175,85.264,85.231,21.99335102]
[1771742794882,8.81371175,85.263,85.231,21.99335102]
[1771742795082,1.4e-07,85.265,85.231,21.99335102]
[1771742795390,8.81530269,85.264,85.231,21.99335102]
[1771742795593,8.81530269,85.263,85.231,21.99335102]
[1771742795794,1.4e-07,85.265,85.231,21.99335102]
[1771742795987,8.81530269,85.264,85.231,21.99335102]
[1771742796185,8.81530269,85.263,85.231,21.99335102]
[1771742796491,8.81530269,85.262,85.231,21.99335102]
[1771742796693,1.4e-07,85.265,85.231,21.99335102]
[1771742796991,11.74974989,85.264,85.231,21.99335102]
[1771742797188,11.74974989,85.263,85.231,21.99335102]
[1771742797389,11.74974989,85.262,85.231,21.99335102]